[Event "79th Armenian-HL-ch Women 2024"]
[Site "Yerevan"]
[Date "2024.01.14"]
[Round "3.5"]
[White "Stepanyan, Alvard"]
[Black "Grigoryan, Arpine"]
[Result "0-1"]
[ECO "D36"]
[WhiteElo "1514"]
[BlackElo "2025"]
[Annotator "TA"]
[PlyCount "80"]
[EventDate "2024.01.11"]
[EventType "tourn"]
[EventCountry "ARM"]
[SourceTitle "playchess.com"]
[Source "ChessBase"]
[SourceQuality "1"]
[TimeControl "40/5400+30:1800+30"]

{[%evp 27,80,11,11,0,31,20,32,-24,-17,-89,-27,-12,-12,-14,-21,0,0,-19,-23,-31,-50,-60,-45,-243,-249,-231,-118,-316,-333,-327,-303,-444,-433,-2537,-2358,-29971,-29972,-29972,-29973,-29973,-29974,-29974,-29975,-29975,-29976,-29976,-29977,-29977,-29978,-29978,-29979,-29979,-29979,-29979,-29980]} 1. d4 {[%emt 0:00:52]} d5 {[%emt 0:00:21]} 2. c4 {[%emt 0:00:00]} e6 {[%emt 0:00:17]} 3. Nc3 {[%emt 0:00:20]} Nf6 {[%emt 0:00:29]} 4. cxd5 {[%emt 0:01:10]} exd5 {[%emt 0:00:19]} 5. Bg5 {[%emt 0:00:08]} Be7 {[%emt 0:00:34]} 6. e3 {[%emt 0:00:09]} O-O {[%emt 0:00:57]} 7. Bd3 {[%emt 0:00:41]} c6 {[%emt 0:00:47]} 8. Qc2 {[%emt 0:00:09]} Nbd7 {[%emt 0:00:55]} 9. Nf3 {[%emt 0:00:34]} Re8 {[%emt 0:01:24]} 10. O-O {[%emt 0:00:10]} Nf8 {[%emt 0:01:04]} 11. Rab1 {[%emt 0:04:26]} Ne4 {[%emt 0:02:22]} 12. Bxe7 {[%emt 0:07:00]} Qxe7 {[%emt 0:00:10]} 13. Bxe4 {[%emt 0:05:07]} dxe4 {[%emt 0:00:25]} 14. Nd2 {[%emt 0:00:06]} f5 {[%emt 0:03:43]} 15. d5 {[%emt 0:11:39]} Kh8 {[%emt 0:08:41]} 16. Rfd1 {[%emt 0:05:15]} Ng6 {[%emt 0:18:34] [#]} 17. d6 {[%emt 0:12:27]} Qf7 {[%emt 0:05:02]} 18. Na4 {[%emt 0:04:28] [#]} (18. b3 $11) 18... Ne5 {[%emt 0:03:14]} ({Black should play} 18... Be6 $1 $17 {[%cal Oa8d8]} 19. Nc5 Bxa2) 19. b3 $11 {[%emt 0:05:28]} b6 {[%emt 0:11:39]} 20. Nc4 {[%emt 0:05:32] Strongly threatening Nxe5.} Bd7 {[%emt 0:01:04]} 21. Nxe5 {[%emt 0:08:11]} Rxe5 {[%emt 0:00:07]} 22. Nb2 {[%emt 0:01:27]} Rae8 {[%emt 0:04:17]} 23. Nc4 {[%emt 0:03:39]} R5e6 {[%emt 0:00:42]} 24. Qc3 {[%emt 0:00:40]} Qh5 {[%emt 0:11:03]} 25. h3 $2 {[%emt 0:02:22] [#] Black converts the advantage convincingly.} (25. a4 $15) 25... b5 $1 $19 {[%emt 0:05:09]} 26. Nd2 {[%emt 0:08:04]} (26. Na5 Rg6 27. Kf1 f4 $19) 26... Rxd6 {[%emt 0:01:37]} (26... Rg6 27. Nf1 Qxh3 28. Ng3) (26... f4 $19 {White must now prevent ...f3.} 27. Nf1 f3 (27... Rg6 28. exf4 e3 29. fxe3 $14)) 27. Nf3 $2 {[%emt 0:02:02]} Rxd1+ {[%emt 0:01:27]} 28. Rxd1 {[%emt 0:00:01]} Bc8 {[%emt 0:02:26]} 29. g4 {[%emt 0:06:07]} (29. Qxc6 $142 exf3 30. Qxf3 Qxf3 31. gxf3) 29... fxg4 {[%emt 0:01:29]} 30. Ne5 {[%emt 0:00:25]} (30. Ne1 $142) 30... gxh3 {[%emt 0:02:40]} (30... Qxe5 $2 31. Qxe5 (31. Qxc6 gxh3 32. Qd6 Qg5+ 33. Qg3 Qxg3+ 34. fxg3 Bg4 $19) 31... Rg8 32. Qc7 $18 (32. Qxe4 c5 $18)) 31. Rd6 {[%emt 0:01:12]} h2+ {[%emt 0:04:05] Black mates.} (31... Qxe5 $2 32. Qxe5 (32. Qxc6 Bg4) 32... Rg8 33. Rxc6 $18 (33. Qxe4 c5 $18)) 32. Kh1 {[%emt 0:00:08]} Bh3 {[%emt 0:01:40]} (32... Qxe5 $2 33. Qxe5 (33. Qxc6 {is a self mate.} Bg4) 33... Rg8 34. Kxh2 $18 (34. Rxc6 a6 $18)) 33. Kxh2 {[%emt 0:03:51]} Bg4+ {[%emt 0:02:51]} 34. Kg1 {[%emt 0:00:27]} Bf3 {[%emt 0:00:14]} (34... Rxe5 $2 {loses.} 35. Qxe5 h6 36. Qxh5 (36. Qxe4 Bf5 $18) 36... Bxh5 37. Rxc6 $18) 35. Nxf3 {[%emt 0:02:20]} exf3 {[%emt 0:00:05]} 36. Qxc6 {[%emt 0:00:57] KQR-KQR} Qg4+ {[%emt 0:00:28]} 37. Kf1 {[%emt 0:00:05]} Qg2+ {[%emt 0:00:08]} 38. Ke1 {[%emt 0:00:03]} Qg1+ {[%emt 0:00:43]} 39. Kd2 {[%emt 0:00:31]} Qxf2+ {[%emt 0:00:06]} 40. Kc3 {[%emt 0:00:00]} Qxe3+ {[%emt 0:07:12] Weighted Error Value: White=0.88/Black=0.09 (flawless) .  Loses game:     	White=2     	---        Mistake:       	White=4     	Black=2      Inaccurate:     	White=1     	Black=1      OK:         	White=3     	Black=5      Best:        	White=1     	Black=3      Strong:       	---       	Black=1} 0-1

[Event "79th Armenian-HL-ch Women 2024"]
[Site "Yerevan"]
[Date "2024.01.15"]
[Round "4.1"]
[White "Grigoryan, Arpine"]
[Black "Gasparyan, Milena"]
[Result "1/2-1/2"]
[ECO "B40"]
[WhiteElo "2025"]
[BlackElo "1802"]
[Annotator "NA"]
[PlyCount "90"]
[EventDate "2024.01.11"]
[EventType "tourn"]
[EventCountry "ARM"]
[SourceTitle "playchess.com"]
[Source "ChessBase"]
[SourceQuality "1"]
[TimeControl "40/5400+30:1800+30"]

1. e4 {[%emt 0:00:03]} c5 {[%emt 0:00:06]} 2. Nf3 {[%emt 0:00:20]} e6 {[%emt 0:00:07]} 3. d4 {[%emt 0:00:28]} cxd4 {[%emt 0:00:14]} 4. Nxd4 {[%emt 0:00:05]} Nf6 {[%emt 0:00:10]} 5. Bd3 {[%emt 0:05:52]} Nc6 {[%emt 0:02:40]} 6. Nxc6 {[%emt 0:01:54]} bxc6 {[%emt 0:00:09]} 7. O-O {[%emt 0:00:18]} d5 {[%emt 0:00:24]} 8. e5 {[%emt 0:05:03]} Nd7 {[%emt 0:00:12]} 9. Qe2 {[%emt 0:00:40]} Qb6 {[%emt 0:05:05]} 10. Nd2 {[%emt 0:09:20]} Nc5 {[%emt 0:07:03]} 11. Nb3 {[%emt 0:07:52]} Nxd3 {[%emt 0:05:26]} 12. cxd3 {[%emt 0:00:10]} Ba6 {[%emt 0:00:04]} 13. Be3 {[%emt 0:03:49]} c5 {[%emt 0:00:30]} 14. Rfc1 {[%emt 0:00:30]} Rc8 {[%emt 0:10:24]} 15. Qd2 {[%emt 1:01:36]} Be7 {[%emt 1:05:26]} 16. d4 {[%emt 0:00:00]} c4 {[%emt 0:00:00]} 17. Nc5 {[%emt 0:00:00]} Bb5 {[%emt 0:00:00]} 18. Rc3 {[%emt 0:00:00]} O-O {[%emt 0:00:00]} 19. Bg5 {[%emt 0:00:00]} f6 {[%emt 0:00:00]} 20. exf6 {[%emt 0:00:00]} gxf6 {[%emt 0:00:00]} 21. Bh4 {[%emt 0:00:00]} e5 {[%emt 0:00:00]} 22. b4 {[%emt 0:00:00]} cxb3 {[%emt 0:00:00]} 23. Nxb3 {[%emt 0:00:00]} Rxc3 {[%emt 0:00:00]} 24. Qxc3 {[%emt 0:00:00]} e4 {[%emt 0:00:00]} 25. f3 {[%emt 0:00:00]} Qe6 {[%emt 0:00:00]} 26. fxe4 {[%emt 0:00:00]} dxe4 {[%emt 0:00:00]} 27. Nc5 {[%emt 0:00:00]} Qd5 {[%emt 0:00:00]} 28. Re1 {[%emt 0:02:07]} Bxc5 {[%emt 0:00:00]} 29. dxc5 {[%emt 0:00:39]} f5 {[%emt 0:02:18]} 30. Bf6 {[%emt 0:01:00]} Qd3 {[%emt 0:00:58]} 31. Qe5 {[%emt 0:01:07]} Qd7 {[%emt 0:01:40]} 32. Qg3+ {[%emt 0:01:22]} Kf7 {[%emt 0:00:05]} 33. Be5 {[%emt 0:00:57]} Rg8 {[%emt 0:01:14]} 34. Qb3+ {[%emt 0:00:51]} Qe6 {[%emt 0:00:36]} 35. Qxb5 {[%emt 0:00:05]} Qxe5 {[%emt 0:00:03]} 36. Qd7+ {[%emt 0:00:15]} Kf6 {[%emt 0:00:57]} 37. Qxh7 {[%emt 0:01:41]} Qxc5+ {[%emt 0:00:09]} 38. Kh1 {[%emt 0:00:03]} Rg7 {[%emt 0:01:02]} 39. Qh4+ {[%emt 0:00:30]} Ke6 {[%emt 0:01:12]} 40. Qh6+ {[%emt 0:00:00]} Kf7 {[%emt 0:00:00]} 41. Rc1 {[%emt 0:06:16]} Qb6 {[%emt 0:04:57]} 42. Qf4 {[%emt 0:03:59]} Kg6 {[%emt 0:07:47]} 43. Rd1 {[%emt 0:03:33]} Rd7 {[%emt 0:00:23]} 44. Qg3+ {[%emt 0:01:43]} Kf6 {[%emt 0:00:18]} 45. Qh4+ {[%emt 0:00:56]} Kg6 {[%emt 0:00:23]} 1/2-1/2

[Event "79th Armenian-HL-ch Women 2024"]
[Site "Yerevan"]
[Date "2024.01.15"]
[Round "4.2"]
[White "Khachatryan, Anna"]
[Black "Gevorgyan, Maria"]
[Result "1-0"]
[ECO "D36"]
[WhiteElo "2022"]
[BlackElo "2272"]
[Annotator "NA RC"]
[PlyCount "81"]
[EventDate "2024.01.11"]
[EventType "tourn"]
[EventCountry "ARM"]
[SourceTitle "playchess.com"]
[Source "ChessBase"]
[SourceQuality "1"]
[TimeControl "40/5400+30:1800+30"]

1. d4 d5 2. c4 e6 3. cxd5 exd5 4. Nc3 Nf6 5. Bg5 Be7 6. e3 c6 7. Bd3 O-O 8. Qc2 h6 9. Bh4 Re8 10. Nge2 Nbd7 11. O-O Ne4 12. Bxe7 Qxe7 13. Rae1 Ndf6 14. f3 Ng5 15. Ng3 c5 16. dxc5 Qxc5 17. Nb5 Ne6 18. Qxc5 Nxc5 19. Bc2 Rd8 20. Rc1 Bd7 21. Nd4 Rac8 22. Rfd1 g6 23. Kf2 Rc7 24. Nge2 Kg7 25. b4 Ne6 26. Bb3 Rdc8 27. Rxc7 Rxc7 28. Rd2 a5 29. bxa5 Rc5 30. Rc2 Rxa5 31. Nxe6+ fxe6 32. Rc7 b6 33. Rb7 Ra6 34. Nf4 Kf7 35. Nd3 Ke7 36. Nb4 Ra8 37. Rxb6 Kd8 38. Ra6 Rc8 39. Nd3 Ne8 40. Ne5 Nc7 41. Rd6 1-0

[Event "79th Armenian-HL-ch Women 2024"]
[Site "Yerevan"]
[Date "2024.01.15"]
[Round "4.3"]
[White "Gaboyan, Susanna"]
[Black "Stepanyan, Alvard"]
[Result "1-0"]
[ECO "A08"]
[WhiteElo "2179"]
[BlackElo "1514"]
[Annotator "NA RC"]
[PlyCount "57"]
[EventDate "2024.01.11"]
[EventType "tourn"]
[EventCountry "ARM"]
[SourceTitle "playchess.com"]
[Source "ChessBase"]
[SourceQuality "1"]
[TimeControl "40/5400+30:1800+30"]

1. Nf3 {[%emt 0:00:34]} c5 {[%emt 0:00:20]} 2. g3 {[%emt 0:00:06]} Nc6 {[%emt 0:00:12]} 3. Bg2 {[%emt 0:00:09]} g6 {[%emt 0:00:16]} 4. O-O {[%emt 0:01:10]} Bg7 {[%emt 0:00:08]} 5. d3 {[%emt 0:00:34]} d5 {[%emt 0:00:21]} 6. Nbd2 {[%emt 0:00:07]} e6 {[%emt 0:00:35]} 7. e4 {[%emt 0:00:08]} Nge7 {[%emt 0:00:09]} 8. Re1 {[%emt 0:02:23]} b6 {[%emt 0:03:37]} 9. Qe2 {[%emt 0:02:45]} Qc7 {[%emt 0:00:43]} 10. Nf1 {[%emt 0:01:17]} dxe4 {[%emt 0:11:42]} 11. dxe4 {[%emt 0:00:25]} e5 {[%emt 0:00:38]} 12. c3 {[%emt 0:00:30]} O-O {[%emt 0:03:09]} 13. h4 {[%emt 0:01:16]} a6 {[%emt 0:11:04]} 14. h5 {[%emt 0:01:24]} b5 {[%emt 0:02:48]} 15. h6 {[%emt 0:03:35]} Bh8 {[%emt 0:00:26]} 16. Ne3 {[%emt 0:00:19]} Rd8 {[%emt 0:08:34]} 17. a4 {[%emt 0:09:43]} Rb8 {[%emt 0:03:38]} 18. axb5 {[%emt 0:06:05]} axb5 {[%emt 0:00:08]} 19. Nd5 {[%emt 0:06:03]} Qb7 {[%emt 0:09:01]} 20. Bg5 {[%emt 0:01:36]} Rd6 {[%emt 0:14:30]} 21. Qe3 {[%emt 0:09:25]} Qd7 {[%emt 0:12:00]} 22. Nxe7+ {[%emt 0:01:06]} Nxe7 {[%emt 0:00:05]} 23. Qxc5 {[%emt 0:00:07]} f6 {[%emt 0:00:39]} 24. Be3 {[%emt 0:02:12]} Rc6 {[%emt 0:05:17]} 25. Qb4 {[%emt 0:01:14]} Qe6 {[%emt 0:02:10]} 26. Ra7 {[%emt 0:00:55]} Bd7 {[%emt 0:04:36]} 27. Rd1 {[%emt 0:01:13]} Rd8 {[%emt 0:00:24]} 28. Bh3 {[%emt 0:01:11]} f5 {[%emt 0:04:03]} 29. Ng5 {[%emt 0:00:08]} 1-0

[Event "79th Armenian-HL-ch Women 2024"]
[Site "Yerevan"]
[Date "2024.01.15"]
[Round "4.4"]
[White "Harutyunyan, Meline"]
[Black "Kobak, Polina"]
[Result "1/2-1/2"]
[ECO "A25"]
[WhiteElo "1536"]
[BlackElo "2120"]
[Annotator "NA RC"]
[PlyCount "84"]
[EventDate "2024.01.11"]
[EventType "tourn"]
[EventCountry "ARM"]
[SourceTitle "playchess.com"]
[Source "ChessBase"]
[SourceQuality "1"]
[TimeControl "40/5400+30:1800+30"]

1. c4 {[%emt 0:01:35]} e5 {[%emt 0:00:07]} 2. Nc3 {[%emt 0:00:22]} Nc6 {[%emt 0:00:19]} 3. Nf3 {[%emt 0:01:17]} f5 {[%emt 0:00:25]} 4. d3 {[%emt 0:00:24]} Nf6 {[%emt 0:01:07]} 5. g3 {[%emt 0:02:04]} Bb4 {[%emt 0:02:53]} 6. Bg2 {[%emt 0:12:23]} O-O {[%emt 0:00:58]} 7. O-O {[%emt 0:00:07]} d6 {[%emt 0:03:18]} 8. Qc2 {[%emt 0:07:26]} Bxc3 {[%emt 0:07:29]} 9. Qxc3 {[%emt 0:00:59]} a5 {[%emt 0:00:09]} 10. b3 {[%emt 0:02:33]} h6 {[%emt 0:05:15]} 11. Bb2 {[%emt 0:06:35]} Be6 {[%emt 0:01:40]} 12. a3 {[%emt 0:18:29]} Qe8 {[%emt 0:09:00]} 13. b4 {[%emt 0:04:26]} Qh5 {[%emt 0:01:20]} 14. d4 {[%emt 0:05:01]} axb4 {[%emt 0:14:08]} 15. axb4 {[%emt 0:00:24]} Ne4 {[%emt 0:03:55]} 16. Qd3 {[%emt 0:14:25]} Nxb4 {[%emt 0:06:22]} 17. Qb3 {[%emt 0:00:08]} c5 {[%emt 0:00:23]} 18. dxe5 {[%emt 0:01:53]} b5 {[%emt 0:11:00]} 19. exd6 {[%emt 0:00:21]} Bxc4 {[%emt 0:01:51]} 20. Qd1 {[%emt 0:00:02]} Rad8 {[%emt 0:00:19]} 21. Ra7 {[%emt 0:02:37]} Bf7 {[%emt 0:04:59]} 22. Qa1 {[%emt 0:03:09]} Qg6 {[%emt 0:09:34]} 23. Nh4 {[%emt 0:03:18]} Qh7 {[%emt 0:00:35]} 24. d7 {[%emt 0:04:38]} Bc4 {[%emt 0:02:50]} 25. Qd1 {[%emt 0:03:04]} Nd5 {[%emt 0:02:14]} 26. Qc2 {[%emt 0:01:07]} Nb4 {[%emt 0:02:02]} 27. Qd1 {[%emt 0:00:01]} g5 {[%emt 0:04:01]} 28. Nf3 {[%emt 0:00:42]} Qg6 {[%emt 0:01:27]} 29. Ne5 {[%emt 0:01:19]} Qb6 {[%emt 0:00:06]} 30. Nxc4 {[%emt 0:00:50]} bxc4 {[%emt 0:01:18]} 31. Qa1 {[%emt 0:02:47]} c3 {[%emt 0:01:05]} 32. Bc1 {[%emt 0:00:20]} Rf7 {[%emt 0:01:40]} 33. Ra8 {[%emt 0:00:34]} Nc2 {[%emt 0:01:18]} 34. Qa4 {[%emt 0:00:50]} Nb4 {[%emt 0:01:09]} 35. Qa1 {[%emt 0:00:55]} Rfxd7 {[%emt 0:00:50]} 36. Rxd8+ {[%emt 0:00:23]} Rxd8 {[%emt 0:00:09]} 37. Bxe4 {[%emt 0:00:02]} fxe4 {[%emt 0:00:05]} 38. Qxc3 {[%emt 0:00:05]} Qd6 {[%emt 0:00:44]} 39. Bb2 {[%emt 0:01:10]} Qd4 {[%emt 0:00:04]} 40. Qb3+ {[%emt 0:00:00]} Qd5 {[%emt 0:00:00]} 41. Qc3 {[%emt 0:00:45]} Qd4 {[%emt 0:00:23]} 42. Qb3+ {[%emt 0:00:05]} Qd5 {[%emt 0:00:06]} 1/2-1/2

[Event "79th Armenian-HL-ch Women 2024"]
[Site "Yerevan"]
[Date "2024.01.15"]
[Round "4.5"]
[White "Avetisyan, Mariam"]
[Black "Khachatryan, Mariam"]
[Result "1-0"]
[ECO "E90"]
[WhiteElo "2043"]
[BlackElo "1567"]
[Annotator "NA RC"]
[PlyCount "65"]
[EventDate "2024.01.11"]
[EventType "tourn"]
[EventCountry "ARM"]
[SourceTitle "playchess.com"]
[Source "ChessBase"]
[SourceQuality "1"]
[TimeControl "40/5400+30:1800+30"]

1. d4 {[%emt 0:00:03]} Nf6 {[%emt 0:00:07]} 2. c4 {[%emt 0:00:06]} g6 {[%emt 0:00:10]} 3. Nc3 {[%emt 0:00:03]} Bg7 {[%emt 0:00:04]} 4. e4 {[%emt 0:00:04]} d6 {[%emt 0:00:05]} 5. Nf3 {[%emt 0:00:05]} Bg4 {[%emt 0:00:29]} 6. Be2 {[%emt 0:01:39]} Bxf3 {[%emt 0:00:14]} 7. Bxf3 {[%emt 0:00:09]} e5 {[%emt 0:00:11]} 8. d5 {[%emt 0:00:41]} h5 {[%emt 0:00:21]} 9. Be3 {[%emt 0:02:27]} Bh6 {[%emt 0:00:30]} 10. Bxh6 {[%emt 0:03:08]} Rxh6 {[%emt 0:00:06]} 11. Qd2 {[%emt 0:00:24]} Rh8 {[%emt 0:01:03]} 12. Bd1 {[%emt 0:03:54]} Kf8 {[%emt 0:05:03]} 13. Bc2 {[%emt 0:03:32]} Nbd7 {[%emt 0:03:16]} 14. g3 {[%emt 0:04:43]} Qe7 {[%emt 0:06:01]} 15. O-O-O {[%emt 0:13:14]} a6 {[%emt 0:03:35]} 16. Rdf1 {[%emt 0:02:19]} b5 {[%emt 0:01:30]} 17. f4 {[%emt 0:08:41]} Kg7 {[%emt 0:03:54]} 18. f5 {[%emt 0:07:21]} Nb6 {[%emt 0:07:08]} 19. Rf3 {[%emt 0:11:44]} Nxc4 {[%emt 0:03:36]} 20. Qg5 {[%emt 0:00:07]} Nb6 {[%emt 0:11:21]} 21. Nd1 {[%emt 0:02:20]} Nbd7 {[%emt 0:01:27]} 22. fxg6 {[%emt 0:34:46]} fxg6 {[%emt 0:01:00]} 23. Ne3 {[%emt 0:00:00]} Kh7 {[%emt 0:04:07]} 24. g4 {[%emt 0:00:00]} Qg7 {[%emt 0:02:26]} 25. gxh5 {[%emt 0:00:00]} Nxh5 {[%emt 0:03:48]} 26. Nf5 {[%emt 0:00:00]} Qf6 {[%emt 0:08:12]} 27. Qg4 {[%emt 0:00:00]} Nf4 {[%emt 0:06:30]} 28. Nd4 {[%emt 0:00:00]} Qg7 {[%emt 0:05:08]} 29. Ne6 {[%emt 0:00:00]} Nf6 {[%emt 0:01:30]} 30. Qg5 {[%emt 0:00:00]} Nxe6 {[%emt 0:10:40]} 31. dxe6 {[%emt 0:00:00]} Rhf8 {[%emt 0:00:33]} 32. Rhf1 {[%emt 0:00:00]} Nh5 {[%emt 0:05:32]} 33. Rf7 {[%emt 0:00:00]} 1-0

[Event "79th Armenian-HL-ch Women 2024"]
[Site "Yerevan"]
[Date "2024.01.16"]
[Round "5.1"]
[White "Khachatryan, Mariam"]
[Black "Harutyunyan, Meline"]
[Result "0-1"]
[ECO "D36"]
[WhiteElo "1567"]
[BlackElo "1536"]
[Annotator "NA RC"]
[PlyCount "70"]
[EventDate "2024.01.11"]
[EventType "tourn"]
[EventCountry "ARM"]
[SourceTitle "playchess.com"]
[Source "ChessBase"]
[SourceQuality "1"]
[TimeControl "40/5400+30:1800+30"]

1. d4 {[%emt 0:00:06]} d5 {[%emt 0:00:20]} 2. c4 {[%emt 0:00:07]} e6 {[%emt 0:00:09]} 3. Nc3 {[%emt 0:00:06]} Nf6 {[%emt 0:00:07]} 4. cxd5 {[%emt 0:00:06]} exd5 {[%emt 0:00:19]} 5. Bg5 {[%emt 0:00:08]} Be7 {[%emt 0:01:00]} 6. e3 {[%emt 0:00:51]} O-O {[%emt 0:01:13]} 7. Bd3 {[%emt 0:00:35]} Nbd7 {[%emt 0:08:48]} 8. Nge2 {[%emt 0:01:43]} Re8 {[%emt 0:03:01]} 9. Qc2 {[%emt 0:01:53]} Nf8 {[%emt 0:05:01]} 10. h3 {[%emt 0:04:20]} c6 {[%emt 0:16:29]} 11. f3 {[%emt 0:06:17]} Nh5 {[%emt 0:03:31]} 12. Bf4 {[%emt 0:07:57]} Bh4+ {[%emt 0:05:07]} 13. Kd2 {[%emt 0:05:31]} Nxf4 {[%emt 0:07:04]} 14. exf4 {[%emt 0:01:30]} Qe7 {[%emt 0:06:49]} 15. Raf1 {[%emt 0:04:28]} b5 {[%emt 0:08:47]} 16. Kc1 {[%emt 0:03:21]} Bb7 {[%emt 0:01:01]} 17. Kb1 {[%emt 0:03:45]} a6 {[%emt 0:00:53]} 18. g3 {[%emt 0:56:46]} Bf6 {[%emt 0:00:15]} 19. g4 {[%emt 0:00:00]} c5 {[%emt 0:06:42]} 20. g5 {[%emt 0:00:00]} Bxd4 {[%emt 0:00:11]} 21. Nxd4 {[%emt 0:00:00]} cxd4 {[%emt 0:00:03]} 22. Ne2 {[%emt 0:00:00]} Rac8 {[%emt 0:08:52]} 23. Qd1 {[%emt 0:00:00]} Qe3 {[%emt 0:01:42]} 24. Nxd4 {[%emt 0:00:00]} Qxf4 {[%emt 0:01:06]} 25. Rhg1 {[%emt 0:00:00]} g6 {[%emt 0:06:26]} 26. Bc2 {[%emt 0:00:00]} Nd7 {[%emt 0:02:48]} 27. Rg4 {[%emt 0:00:00]} Qe3 {[%emt 0:01:29]} 28. f4 {[%emt 0:00:00]} Rc4 {[%emt 0:01:54]} 29. f5 {[%emt 0:00:00]} Ne5 {[%emt 0:01:03]} 30. fxg6 {[%emt 0:00:00]} hxg6 {[%emt 0:01:33]} 31. Rgf4 {[%emt 0:00:00]} Nc6 {[%emt 0:01:05]} 32. R1f3 {[%emt 0:00:00]} Rxd4 {[%emt 0:00:30]} 33. Rxd4 {[%emt 0:00:00]} Qxd4 {[%emt 0:00:24]} 34. Rd3 {[%emt 0:00:00]} Qf2 {[%emt 0:00:39]} 35. Qg4 {[%emt 0:00:00]} Ne5 {[%emt 0:00:30]} 0-1

[Event "79th Armenian-HL-ch Women 2024"]
[Site "Yerevan"]
[Date "2024.01.16"]
[Round "5.2"]
[White "Kobak, Polina"]
[Black "Khachatryan, Anna"]
[Result "0-1"]
[ECO "A37"]
[WhiteElo "2120"]
[BlackElo "2022"]
[Annotator "NA RC"]
[PlyCount "72"]
[EventDate "2024.01.11"]
[EventType "tourn"]
[EventCountry "ARM"]
[SourceTitle "playchess.com"]
[Source "ChessBase"]
[SourceQuality "1"]
[TimeControl "40/5400+30:1800+30"]

1. Nf3 {[%emt 0:00:05]} c5 {[%emt 0:01:17]} 2. c4 {[%emt 0:00:25]} Nc6 {[%emt 0:01:52]} 3. g3 {[%emt 0:04:46]} g6 {[%emt 0:05:48]} 4. Bg2 {[%emt 0:01:06]} Bg7 {[%emt 0:00:05]} 5. Nc3 {[%emt 0:00:09]} d6 {[%emt 0:03:18]} 6. O-O {[%emt 0:03:14]} e5 {[%emt 0:02:04]} 7. d3 {[%emt 0:03:22]} Nge7 {[%emt 0:00:27]} 8. a3 {[%emt 0:06:28]} O-O {[%emt 0:01:06]} 9. Rb1 {[%emt 0:00:07]} a5 {[%emt 0:06:33]} 10. e4 {[%emt 0:05:22]} h6 {[%emt 0:06:46]} 11. Nd5 {[%emt 0:03:50]} Bg4 {[%emt 0:20:41]} 12. h3 {[%emt 0:06:12]} Bd7 {[%emt 0:03:16]} 13. Kh1 {[%emt 0:11:05]} Kh7 {[%emt 0:04:21]} 14. Ng1 {[%emt 0:01:55]} Nxd5 {[%emt 0:03:22]} 15. exd5 {[%emt 0:05:15]} Nd4 {[%emt 0:01:51]} 16. Ne2 {[%emt 0:07:10]} Nxe2 {[%emt 0:03:31]} 17. Qxe2 {[%emt 0:00:05]} f5 {[%emt 0:01:37]} 18. b4 {[%emt 0:07:27]} axb4 {[%emt 0:00:11]} 19. axb4 {[%emt 0:00:04]} b6 {[%emt 0:00:11]} 20. f4 {[%emt 0:04:27]} Re8 {[%emt 0:02:24]} 21. fxe5 {[%emt 0:03:54]} Bxe5 {[%emt 0:12:05]} 22. Qd2 {[%emt 0:00:38]} Bg7 {[%emt 0:00:04]} 23. bxc5 {[%emt 0:02:01]} bxc5 {[%emt 0:00:02]} 24. Re1 {[%emt 0:05:26]} Qc7 {[%emt 0:06:17]} 25. Bb2 {[%emt 0:03:38]} Ra2 {[%emt 0:02:22]} 26. Rxe8 {[%emt 0:00:52]} Bxe8 {[%emt 0:00:01]} 27. Qe1 {[%emt 0:00:50]} Bxb2 {[%emt 0:07:39]} 28. Qxe8 {[%emt 0:00:05]} Be5 {[%emt 0:01:17]} 29. Rb8 {[%emt 0:06:31]} Qg7 {[%emt 0:00:54]} 30. Kh2 {[%emt 0:03:42]} Re2 {[%emt 0:01:29]} 31. Qa4 {[%emt 0:04:26]} Bxg3+ {[%emt 0:00:11]} 32. Kh1 {[%emt 0:00:15]} Qe7 {[%emt 0:02:43]} 33. Qa8 {[%emt 0:01:09]} Re1+ {[%emt 0:00:12]} 34. Bf1 {[%emt 0:00:03]} Rxf1+ {[%emt 0:00:11]} 35. Kg2 {[%emt 0:00:03]} Rf2+ {[%emt 0:00:17]} 36. Kxg3 {[%emt 0:00:10]} Qe3+ {[%emt 0:00:01]} 0-1